[Event "Titled Tuesday Blitz November 22 Late 2022"]
[White "Araujo Sanchez, Josue"]
[Black "Kravtsiv, Martyn"]
[WhiteFideId "6416896"]
[BlackFideId "14113147"]
[WhiteElo "2370"]
[BlackElo "2694"]
[Result "1-0"]
[Round "06"]
[TimeControl "180+1"]
[Date "2022.11.22"]
[WhiteClock "0:00:10"]
[BlackClock "0:00:06"]

1. c4 {[%clk 0:02:59]}  e6 {[%clk 0:02:56]} 2. Nf3 {[%clk 0:02:58]}  d5 {[%clk 0:02:57]} 3. e3 {[%clk 0:02:59]}  Nf6 {[%clk 0:02:56]} 4. b3 {[%clk 0:02:59]}  c5 {[%clk 0:02:55]} 5. cxd5 {[%clk 0:02:58]}  exd5 {[%clk 0:02:53]} 6. Bb5+ {[%clk 0:02:58]}  Bd7 {[%clk 0:02:50]} 7. Bxd7+ {[%clk 0:02:58]}  Nbxd7 {[%clk 0:02:50]} 8. O-O {[%clk 0:02:59]}  Rc8 {[%clk 0:02:49]} 9. Bb2 {[%clk 0:02:57]}  Be7 {[%clk 0:02:48]} 10. Nc3 {[%clk 0:02:57]}  O-O {[%clk 0:02:47]} 11. d4 {[%clk 0:02:57]}  c4 {[%clk 0:02:36]} 12. bxc4 {[%clk 0:02:56]}  Rxc4 {[%clk 0:02:31]} 13. Nd2 {[%clk 0:02:46]}  Rc6 {[%clk 0:02:30]} 14. Qb3 {[%clk 0:02:38]}  Nb6 {[%clk 0:02:28]} 15. Rac1 {[%clk 0:02:33]}  Qd7 {[%clk 0:02:27]} 16. Ne2 {[%clk 0:02:32]}  h6 {[%clk 0:02:18]} 17. Rxc6 {[%clk 0:02:26]}  bxc6 {[%clk 0:02:19]} 18. Ba3 {[%clk 0:02:25]}  Rb8 {[%clk 0:02:18]} 19. Bxe7 {[%clk 0:02:25]}  Qxe7 {[%clk 0:02:19]} 20. Rc1 {[%clk 0:02:23]}  Qd6 {[%clk 0:02:13]} 21. Qc2 {[%clk 0:02:18]}  Ng4 {[%clk 0:02:08]} 22. Nf3 {[%clk 0:02:15]}  Nc4 {[%clk 0:02:07]} 23. h3 {[%clk 0:02:08]}  Rb2 {[%clk 0:02:03]} 24. Qd1 {[%clk 0:01:59]}  Nf6 {[%clk 0:01:56]} 25. Rc2 {[%clk 0:01:39]}  Qb4 {[%clk 0:01:52]} 26. Rxb2 {[%clk 0:01:37]}  Qxb2 {[%clk 0:01:53]} 27. a4 {[%clk 0:01:34]}  Ne4 {[%clk 0:01:51]} 28. Ne1 {[%clk 0:01:26]}  Qa3 {[%clk 0:01:28]} 29. Nd3 {[%clk 0:01:15]}  Nb2 {[%clk 0:01:28]} 30. Nxb2 {[%clk 0:01:13]}  Qxb2 {[%clk 0:01:29]} 31. f3 {[%clk 0:01:10]}  Nd2 {[%clk 0:01:26]} 32. Qc1 {[%clk 0:01:03]}  Nxf3+ {[%clk 0:01:11]} 33. Kf2 {[%clk 0:00:43]}  Qxc1 {[%clk 0:01:08]} 34. Nxc1 {[%clk 0:00:44]}  Nd2 {[%clk 0:01:07]} 35. Nd3 {[%clk 0:00:40]}  Nc4 {[%clk 0:01:01]} 36. Nb4 {[%clk 0:00:37]}  Na5 {[%clk 0:01:01]} 37. Kf3 {[%clk 0:00:31]}  Kf8 {[%clk 0:01:02]} 38. e4 {[%clk 0:00:31]}  dxe4+ {[%clk 0:01:02]} 39. Kxe4 {[%clk 0:00:31]}  Ke7 {[%clk 0:01:02]} 40. Ke5 {[%clk 0:00:28]}  Nc4+ {[%clk 0:01:01]} 41. Ke4 {[%clk 0:00:24]}  Kd6 {[%clk 0:01:01]} 42. Nd3 {[%clk 0:00:23]}  g6 {[%clk 0:00:53]} 43. g4 {[%clk 0:00:23]}  Nb6 {[%clk 0:00:47]} 44. a5 {[%clk 0:00:21]}  Nd5 {[%clk 0:00:46]} 45. Ne5 {[%clk 0:00:20]}  f5+ {[%clk 0:00:35]} 46. gxf5 {[%clk 0:00:19]}  Nf6+ {[%clk 0:00:35]} 47. Kf4 {[%clk 0:00:18]}  g5+ {[%clk 0:00:35]} 48. Ke3 {[%clk 0:00:18]}  Kd5 {[%clk 0:00:20]} 49. Ng4 {[%clk 0:00:17]}  Ng8 {[%clk 0:00:16]} 50. Kd3 {[%clk 0:00:16]}  h5 {[%clk 0:00:15]} 51. Ne3+ {[%clk 0:00:16]}  Kd6 {[%clk 0:00:15]} 52. Nc4+ {[%clk 0:00:16]}  Kc7 {[%clk 0:00:15]} 53. Ne5 {[%clk 0:00:17]}  Nf6 {[%clk 0:00:15]} 54. Kc4 {[%clk 0:00:16]}  g4 {[%clk 0:00:08]} 55. hxg4 {[%clk 0:00:17]}  hxg4 {[%clk 0:00:08]} 56. Kd3 {[%clk 0:00:13]}  Kd6 {[%clk 0:00:08]} 57. Nc4+ {[%clk 0:00:13]}  Kd5 {[%clk 0:00:08]} 58. Ne3+ {[%clk 0:00:14]}  Kd6 {[%clk 0:00:08]} 59. Nc4+ {[%clk 0:00:14]}  Kc7 {[%clk 0:00:08]} 60. Ke3 {[%clk 0:00:14]}  c5 {[%clk 0:00:08]} 61. dxc5 {[%clk 0:00:11]}  Kc6 {[%clk 0:00:09]} 62. Ne5+ {[%clk 0:00:11]}  Kxc5 {[%clk 0:00:09]} 63. Kf4 {[%clk 0:00:12]}  Kb5 {[%clk 0:00:08]} 64. Nxg4 {[%clk 0:00:11]}  Nd5+ {[%clk 0:00:08]} 65. Ke5 {[%clk 0:00:10]}  Ne7 {[%clk 0:00:07]} 66. f6 {[%clk 0:00:10]}  Ng6+ {[%clk 0:00:08]} 67. Kf5 {[%clk 0:00:07]}  Nf8 {[%clk 0:00:09]} 68. f7 {[%clk 0:00:07]}  Kxa5 {[%clk 0:00:09]} 69. Kf6 {[%clk 0:00:08]}  Kb6 {[%clk 0:00:09]} 70. Ke7 {[%clk 0:00:08]}  Ng6+ {[%clk 0:00:09]} 71. Kf6 {[%clk 0:00:08]}  Nf8 {[%clk 0:00:09]} 72. Ne5 {[%clk 0:00:09]}  a5 {[%clk 0:00:06]} 73. Ke7 {[%clk 0:00:08]}  Nh7 {[%clk 0:00:07]} 74. Nd7+ {[%clk 0:00:08]}  Kb5 {[%clk 0:00:06]} 75. Nf6 {[%clk 0:00:09]}  a4 {[%clk 0:00:05]} 76. Nxh7 {[%clk 0:00:09]}  a3 {[%clk 0:00:06]} 77. f8=Q {[%clk 0:00:10]} 1-0


[Site "https://www.chess.com"]

[Event "Titled Tuesday Blitz November 22 Late 2022"]
[White "Averjanov, Alexey"]
[Black "Khandelwal, Ankush"]
[WhiteFideId "14109867"]
[BlackFideId "413470"]
[WhiteElo "2605"]
[BlackElo "2271"]
[Result "0-1"]
[Round "06"]
[TimeControl "180+1"]
[Date "2022.11.23"]
[WhiteClock "0:01:26"]
[BlackClock "0:00:15"]

1. d4 {[%clk 0:03:00]}  Nf6 {[%clk 0:03:00]} 2. c4 {[%clk 0:03:01]}  g6 {[%clk 0:03:00]} 3. Nc3 {[%clk 0:03:00]}  Bg7 {[%clk 0:02:58]} 4. e4 {[%clk 0:03:01]}  d6 {[%clk 0:02:56]} 5. Be2 {[%clk 0:03:01]}  O-O {[%clk 0:02:52]} 6. Nf3 {[%clk 0:03:01]}  Na6 {[%clk 0:02:52]} 7. O-O {[%clk 0:03:01]}  e5 {[%clk 0:02:50]} 8. Qc2 {[%clk 0:03:01]}  Nb4 {[%clk 0:02:13]} 9. Qb1 {[%clk 0:02:53]}  exd4 {[%clk 0:01:44]} 10. Nxd4 {[%clk 0:02:54]}  Qe7 {[%clk 0:01:11]} 11. Be3 {[%clk 0:02:52]}  Re8 {[%clk 0:01:10]} 12. f3 {[%clk 0:02:51]}  d5 {[%clk 0:01:00]} 13. a3 {[%clk 0:02:44]}  dxe4 {[%clk 0:00:57]} 14. axb4 {[%clk 0:02:41]}  exf3 {[%clk 0:00:57]} 15. Rxf3 {[%clk 0:02:38]}  Ng4 {[%clk 0:00:58]} 16. Nd5 {[%clk 0:02:36]}  Qe5 {[%clk 0:00:40]} 17. Nb5 {[%clk 0:02:00]}  Qxh2+ {[%clk 0:00:36]} 18. Kf1 {[%clk 0:01:59]}  Rxe3 {[%clk 0:00:30]} 19. Rh3 {[%clk 0:01:37]}  Rxh3 {[%clk 0:00:29]} 20. Bxg4 {[%clk 0:01:36]}  Bxg4 {[%clk 0:00:18]} 21. Ne7+ {[%clk 0:01:36]}  Kf8 {[%clk 0:00:16]} 22. gxh3 {[%clk 0:01:37]}  Bxh3+ {[%clk 0:00:15]} 23. Ke1 {[%clk 0:01:37]}  Re8 {[%clk 0:00:15]} 24. Kd1 {[%clk 0:01:29]}  Rxe7 {[%clk 0:00:15]} 25. Qd3 {[%clk 0:01:26]}  Bg4+ {[%clk 0:00:15]} 26. Kc1 {[%clk 0:01:26]}  Re1+ {[%clk 0:00:15]} 0-1


[Site "https://www.chess.com"]

[Event "Titled Tuesday Blitz November 22 Late 2022"]
[White "Bortnyk, Olexandr"]
[Black "Gorodetzky, David"]
[WhiteFideId "14120828"]
[BlackFideId "2813416"]
[WhiteElo "2723"]
[BlackElo "2497"]
[Result "1-0"]
[Round "06"]
[TimeControl "180+1"]
[Date "2022.11.22"]
[WhiteClock "0:00:12"]
[BlackClock "0:00:17"]

1. d4 {[%clk 0:02:50]}  Nf6 {[%clk 0:02:57]} 2. Nc3 {[%clk 0:02:49]}  e6 {[%clk 0:02:54]} 3. e4 {[%clk 0:02:47]}  d5 {[%clk 0:02:52]} 4. Bg5 {[%clk 0:02:47]}  dxe4 {[%clk 0:02:41]} 5. Nxe4 {[%clk 0:02:48]}  Nbd7 {[%clk 0:01:58]} 6. Nf3 {[%clk 0:02:47]}  Be7 {[%clk 0:01:57]} 7. Bxf6 {[%clk 0:02:47]}  Nxf6 {[%clk 0:01:57]} 8. Bd3 {[%clk 0:02:47]}  c5 {[%clk 0:01:55]} 9. Qe2 {[%clk 0:02:46]}  cxd4 {[%clk 0:01:55]} 10. O-O-O {[%clk 0:02:46]}  Qa5 {[%clk 0:01:46]} 11. Kb1 {[%clk 0:02:45]}  O-O {[%clk 0:01:44]} 12. h4 {[%clk 0:02:42]}  Rd8 {[%clk 0:01:38]} 13. h5 {[%clk 0:02:19]}  Nxe4 {[%clk 0:01:35]} 14. Qxe4 {[%clk 0:02:17]}  f5 {[%clk 0:01:34]} 15. Qe2 {[%clk 0:02:13]}  Bf6 {[%clk 0:01:34]} 16. g4 {[%clk 0:02:10]}  fxg4 {[%clk 0:01:31]} 17. Nd2 {[%clk 0:02:08]}  Qe5 {[%clk 0:01:26]} 18. Qxg4 {[%clk 0:02:05]}  Kh8 {[%clk 0:01:18]} 19. Rdg1 {[%clk 0:01:58]}  Bd7 {[%clk 0:01:16]} 20. Nf3 {[%clk 0:01:21]}  Qd5 {[%clk 0:01:10]} 21. Bxh7 {[%clk 0:01:21]}  Bc6 {[%clk 0:01:07]} 22. Bd3 {[%clk 0:00:33]}  Qxf3 {[%clk 0:01:00]} 23. Qg6 {[%clk 0:00:33]}  Kg8 {[%clk 0:01:00]} 24. h6 {[%clk 0:00:34]}  Rd7 {[%clk 0:00:24]} 25. Qh7+ {[%clk 0:00:26]}  Kf8 {[%clk 0:00:21]} 26. Qh8+ {[%clk 0:00:15]}  Ke7 {[%clk 0:00:21]} 27. Qxa8 {[%clk 0:00:13]}  gxh6 {[%clk 0:00:18]} 28. Rxh6 {[%clk 0:00:11]}  Qxf2 {[%clk 0:00:17]} 29. Rf1 {[%clk 0:00:12]} 1-0


[Site "https://www.chess.com"]

[Event "Titled Tuesday Blitz November 22 Late 2022"]
[White "Caruana, Fabiano"]
[Black "Firouzja, Alireza"]
[WhiteFideId "2020009"]
[BlackFideId "12573981"]
[WhiteElo "2847"]
[BlackElo "2903"]
[Result "0-1"]
[Round "06"]
[TimeControl "180+1"]
[Date "2022.11.22"]
[WhiteClock "0:00:03"]
[BlackClock "0:00:45"]

1. e4 {[%clk 0:03:00]}  g6 {[%clk 0:02:56]} 2. d4 {[%clk 0:03:00]}  Bg7 {[%clk 0:02:56]} 3. Nc3 {[%clk 0:03:00]}  d6 {[%clk 0:02:56]} 4. Be3 {[%clk 0:03:01]}  c6 {[%clk 0:02:54]} 5. h4 {[%clk 0:02:59]}  Nf6 {[%clk 0:02:53]} 6. f3 {[%clk 0:02:50]}  b5 {[%clk 0:02:52]} 7. Qd2 {[%clk 0:02:51]}  h5 {[%clk 0:02:47]} 8. Nh3 {[%clk 0:02:51]}  Bxh3 {[%clk 0:02:39]} 9. Rxh3 {[%clk 0:02:50]}  Nbd7 {[%clk 0:02:40]} 10. Be2 {[%clk 0:02:46]}  Qa5 {[%clk 0:02:37]} 11. Kf1 {[%clk 0:02:38]}  O-O {[%clk 0:02:35]} 12. Kg1 {[%clk 0:02:32]}  e5 {[%clk 0:02:28]} 13. a3 {[%clk 0:02:21]}  Rfe8 {[%clk 0:02:26]} 14. Rd1 {[%clk 0:02:19]}  a6 {[%clk 0:02:24]} 15. Rg3 {[%clk 0:01:55]}  exd4 {[%clk 0:02:12]} 16. Bxd4 {[%clk 0:01:56]}  Qc7 {[%clk 0:02:12]} 17. Qf4 {[%clk 0:01:50]}  Ne5 {[%clk 0:02:10]} 18. Bf1 {[%clk 0:01:38]}  Rad8 {[%clk 0:02:08]} 19. Qe3 {[%clk 0:01:34]}  Rd7 {[%clk 0:01:57]} 20. Qf2 {[%clk 0:01:32]}  d5 {[%clk 0:01:48]} 21. Bb6 {[%clk 0:01:16]}  Qb8 {[%clk 0:01:48]} 22. exd5 {[%clk 0:01:16]}  cxd5 {[%clk 0:01:48]} 23. Bd4 {[%clk 0:01:12]}  Rde7 {[%clk 0:01:45]} 24. Rg5 {[%clk 0:01:11]}  Bh6 {[%clk 0:01:41]} 25. Bc5 {[%clk 0:00:47]}  Re6 {[%clk 0:01:39]} 26. Nxd5 {[%clk 0:00:44]}  Nxd5 {[%clk 0:01:39]} 27. Rxd5 {[%clk 0:00:45]}  Bxg5 {[%clk 0:01:39]} 28. hxg5 {[%clk 0:00:46]}  Nc6 {[%clk 0:01:40]} 29. Rd1 {[%clk 0:00:40]}  Qf4 {[%clk 0:01:38]} 30. Qd2 {[%clk 0:00:34]}  Qe5 {[%clk 0:01:37]} 31. Bb6 {[%clk 0:00:20]}  Qxb2 {[%clk 0:01:35]} 32. c4 {[%clk 0:00:20]}  Qxa3 {[%clk 0:01:28]} 33. cxb5 {[%clk 0:00:18]}  axb5 {[%clk 0:01:29]} 34. Bxb5 {[%clk 0:00:16]}  Qb3 {[%clk 0:01:22]} 35. Qd3 {[%clk 0:00:14]}  Re1+ {[%clk 0:01:12]} 36. Rxe1 {[%clk 0:00:14]}  Rxe1+ {[%clk 0:01:13]} 37. Kf2 {[%clk 0:00:15]}  Rb1 {[%clk 0:01:02]} 38. Qxb3 {[%clk 0:00:07]}  Rxb3 {[%clk 0:01:02]} 39. Bxc6 {[%clk 0:00:07]}  Rxb6 {[%clk 0:01:02]} 40. Be4 {[%clk 0:00:08]}  Rb2+ {[%clk 0:00:58]} 41. Kg3 {[%clk 0:00:07]}  Re2 {[%clk 0:00:59]} 42. Ba8 {[%clk 0:00:06]}  Kg7 {[%clk 0:00:57]} 43. f4 {[%clk 0:00:06]}  Ra2 {[%clk 0:00:52]} 44. Bf3 {[%clk 0:00:06]}  Ra3 {[%clk 0:00:52]} 45. Kf2 {[%clk 0:00:06]}  h4 {[%clk 0:00:51]} 46. Be4 {[%clk 0:00:05]}  f6 {[%clk 0:00:50]} 47. gxf6+ {[%clk 0:00:06]}  Kxf6 {[%clk 0:00:50]} 48. Ke2 {[%clk 0:00:05]}  g5 {[%clk 0:00:45]} 49. fxg5+ {[%clk 0:00:06]}  Kxg5 {[%clk 0:00:46]} 50. Kf2 {[%clk 0:00:04]}  Kf4 {[%clk 0:00:46]} 51. Bd5 {[%clk 0:00:04]}  Rd3 {[%clk 0:00:45]} 52. Ba8 {[%clk 0:00:02]}  Rd2+ {[%clk 0:00:45]} 53. Kf1 {[%clk 0:00:03]}  Kg3 {[%clk 0:00:45]} 0-1


[Site "https://www.chess.com"]

[Event "Titled Tuesday Blitz November 22 Late 2022"]
[White "Castillo Pena, Patricia Evarista"]
[Black "Stanisz, Patryk"]
[WhiteFideId "6412106"]
[BlackFideId "1123106"]
[WhiteElo "1919"]
[BlackElo "2069"]
[Result "0-1"]
[Round "06"]
[TimeControl "180+1"]
[Date "2022.11.23"]
[WhiteClock "0:00:11"]
[BlackClock "0:00:11"]

1. d4 {[%clk 0:02:59]}  d5 {[%clk 0:02:59]} 2. Nf3 {[%clk 0:02:59]}  Nf6 {[%clk 0:03:00]} 3. e3 {[%clk 0:02:59]}  c5 {[%clk 0:02:59]} 4. b3 {[%clk 0:02:58]}  Nc6 {[%clk 0:02:59]} 5. Bd3 {[%clk 0:02:59]}  Bg4 {[%clk 0:02:57]} 6. Bb2 {[%clk 0:02:59]}  e6 {[%clk 0:02:57]} 7. Nbd2 {[%clk 0:02:58]}  cxd4 {[%clk 0:02:58]} 8. exd4 {[%clk 0:02:58]}  Bd6 {[%clk 0:02:57]} 9. O-O {[%clk 0:02:56]}  O-O {[%clk 0:02:56]} 10. a3 {[%clk 0:02:53]}  Rc8 {[%clk 0:02:55]} 11. Qb1 {[%clk 0:02:52]}  h6 {[%clk 0:02:46]} 12. Re1 {[%clk 0:02:52]}  Re8 {[%clk 0:02:45]} 13. Ne5 {[%clk 0:02:52]}  Bh5 {[%clk 0:02:33]} 14. c4 {[%clk 0:02:48]}  Bxe5 {[%clk 0:02:21]} 15. dxe5 {[%clk 0:02:47]}  Nd7 {[%clk 0:02:06]} 16. cxd5 {[%clk 0:02:41]}  exd5 {[%clk 0:02:03]} 17. f4 {[%clk 0:02:37]}  Qh4 {[%clk 0:01:44]} 18. g3 {[%clk 0:02:35]}  Qh3 {[%clk 0:01:41]} 19. Be2 {[%clk 0:02:28]}  Nc5 {[%clk 0:01:22]} 20. Qc2 {[%clk 0:01:58]}  b6 {[%clk 0:01:17]} 21. Bf1 {[%clk 0:01:48]}  Qe6 {[%clk 0:01:10]} 22. Bg2 {[%clk 0:01:41]}  Bg6 {[%clk 0:01:09]} 23. Qc3 {[%clk 0:01:33]}  Nd3 {[%clk 0:01:07]} 24. Re2 {[%clk 0:01:17]}  Ncb4 {[%clk 0:01:05]} 25. Qd4 {[%clk 0:01:04]}  Nc2 {[%clk 0:01:05]} 26. Qxd5 {[%clk 0:00:50]}  Nxa1 {[%clk 0:00:54]} 27. Qxe6 {[%clk 0:00:48]}  fxe6 {[%clk 0:00:51]} 28. Bd4 {[%clk 0:00:28]}  Rc1+ {[%clk 0:00:49]} 29. Bf1 {[%clk 0:00:25]}  Nc2 {[%clk 0:00:44]} 30. Bf2 {[%clk 0:00:21]}  Nxf2 {[%clk 0:00:40]} 31. Kxf2 {[%clk 0:00:22]}  Nd4 {[%clk 0:00:36]} 32. Re3 {[%clk 0:00:21]}  Rc2 {[%clk 0:00:28]} 33. Ke1 {[%clk 0:00:20]}  Rd8 {[%clk 0:00:26]} 34. Nc4 {[%clk 0:00:19]}  Nf5 {[%clk 0:00:20]} 35. Re2 {[%clk 0:00:15]}  Rxe2+ {[%clk 0:00:18]} 36. Bxe2 {[%clk 0:00:16]}  Nd4 {[%clk 0:00:18]} 37. Nd6 {[%clk 0:00:16]}  Nxb3 {[%clk 0:00:16]} 38. Bb5 {[%clk 0:00:15]}  Nd4 {[%clk 0:00:15]} 39. Ba4 {[%clk 0:00:14]}  Bd3 {[%clk 0:00:12]} 40. Kd2 {[%clk 0:00:14]}  Ba6 {[%clk 0:00:10]} 41. Ke3 {[%clk 0:00:14]}  Nf5+ {[%clk 0:00:10]} 42. Nxf5 {[%clk 0:00:13]}  exf5 {[%clk 0:00:11]} 43. h3 {[%clk 0:00:10]}  Rd3+ {[%clk 0:00:10]} 44. Ke2 {[%clk 0:00:11]}  Rxa3+ {[%clk 0:00:11]} 0-1


[Site "https://www.chess.com"]

[Event "Titled Tuesday Blitz November 22 Late 2022"]
[White "Chigaev, Maksim"]
[Black "Sadhwani, Raunak"]
[WhiteFideId "4108116"]
[BlackFideId "35093487"]
[WhiteElo "2541"]
[BlackElo "2656"]
[Result "1-0"]
[Round "06"]
[TimeControl "180+1"]
[Date "2022.11.22"]
[WhiteClock "0:00:07"]
[BlackClock "0:00:04"]

1. c4 {[%clk 0:03:00]}  e5 {[%clk 0:03:00]} 2. Nc3 {[%clk 0:02:56]}  Nf6 {[%clk 0:03:00]} 3. Nf3 {[%clk 0:02:56]}  Nc6 {[%clk 0:03:00]} 4. d3 {[%clk 0:02:52]}  d5 {[%clk 0:02:56]} 5. cxd5 {[%clk 0:02:49]}  Nxd5 {[%clk 0:02:57]} 6. e4 {[%clk 0:02:49]}  Nf6 {[%clk 0:02:53]} 7. Be3 {[%clk 0:02:48]}  Bd6 {[%clk 0:02:50]} 8. Be2 {[%clk 0:02:47]}  O-O {[%clk 0:02:50]} 9. O-O {[%clk 0:02:43]}  a6 {[%clk 0:02:50]} 10. Rc1 {[%clk 0:02:42]}  h6 {[%clk 0:02:49]} 11. h3 {[%clk 0:02:41]}  Re8 {[%clk 0:02:47]} 12. a3 {[%clk 0:02:41]}  Qe7 {[%clk 0:02:42]} 13. Re1 {[%clk 0:02:39]}  Be6 {[%clk 0:02:39]} 14. Nh2 {[%clk 0:02:01]}  Nd4 {[%clk 0:02:36]} 15. Bxd4 {[%clk 0:01:55]}  exd4 {[%clk 0:02:37]} 16. Nb1 {[%clk 0:01:56]}  c5 {[%clk 0:02:30]} 17. Nd2 {[%clk 0:01:53]}  Rac8 {[%clk 0:02:28]} 18. Ng4 {[%clk 0:01:42]}  Nd7 {[%clk 0:02:20]} 19. Bf1 {[%clk 0:01:30]}  h5 {[%clk 0:02:17]} 20. Nh2 {[%clk 0:01:29]}  g6 {[%clk 0:02:10]} 21. Nhf3 {[%clk 0:01:22]}  Bb8 {[%clk 0:01:58]} 22. h4 {[%clk 0:01:18]}  Bg4 {[%clk 0:01:58]} 23. g3 {[%clk 0:01:12]}  Ne5 {[%clk 0:01:53]} 24. Be2 {[%clk 0:01:12]}  Bxf3 {[%clk 0:01:22]} 25. Nxf3 {[%clk 0:01:12]}  b5 {[%clk 0:01:20]} 26. b3 {[%clk 0:00:48]}  Nxf3+ {[%clk 0:01:15]} 27. Bxf3 {[%clk 0:00:49]}  c4 {[%clk 0:01:15]} 28. bxc4 {[%clk 0:00:41]}  bxc4 {[%clk 0:01:16]} 29. dxc4 {[%clk 0:00:31]}  Qxa3 {[%clk 0:01:15]} 30. Kg2 {[%clk 0:00:30]}  d3 {[%clk 0:00:59]} 31. Re3 {[%clk 0:00:30]}  Red8 {[%clk 0:00:55]} 32. e5 {[%clk 0:00:28]}  Ba7 {[%clk 0:00:42]} 33. Re4 {[%clk 0:00:28]}  Qb2 {[%clk 0:00:39]} 34. Kh3 {[%clk 0:00:11]}  Re8 {[%clk 0:00:30]} 35. Rb1 {[%clk 0:00:09]}  Qxf2 {[%clk 0:00:16]} 36. Rb7 {[%clk 0:00:09]}  Rcd8 {[%clk 0:00:13]} 37. Rf4 {[%clk 0:00:09]}  Rxe5 {[%clk 0:00:05]} 38. Bd5 {[%clk 0:00:07]}  Qd4 {[%clk 0:00:04]} 39. Rxd4 {[%clk 0:00:07]} 1-0


[Site "https://www.chess.com"]

[Event "Titled Tuesday Blitz November 22 Late 2022"]
[White "Czopor, Maciej"]
[Black "Ankerst, Mihael"]
[WhiteFideId "21805431"]
[BlackFideId "14602369"]
[WhiteElo "2324"]
[BlackElo "2386"]
[Result "0-1"]
[Round "06"]
[TimeControl "180+1"]
[Date "2022.11.23"]
[WhiteClock "0:00:04"]
[BlackClock "0:00:09"]

1. b3 {[%clk 0:03:00]}  a5 {[%clk 0:02:57]} 2. Nc3 {[%clk 0:02:53]}  d5 {[%clk 0:02:54]} 3. e3 {[%clk 0:02:53]}  e5 {[%clk 0:02:50]} 4. Nf3 {[%clk 0:02:52]}  e4 {[%clk 0:02:48]} 5. Nd4 {[%clk 0:02:50]}  Nf6 {[%clk 0:02:38]} 6. Bb2 {[%clk 0:02:48]}  Bd6 {[%clk 0:02:17]} 7. d3 {[%clk 0:02:47]}  Qe7 {[%clk 0:01:48]} 8. Ndb5 {[%clk 0:02:33]}  Bb4 {[%clk 0:01:41]} 9. a3 {[%clk 0:02:33]}  Bc5 {[%clk 0:01:40]} 10. Na4 {[%clk 0:02:25]}  c6 {[%clk 0:00:56]} 11. Bxf6 {[%clk 0:02:02]}  gxf6 {[%clk 0:00:57]} 12. d4 {[%clk 0:01:49]}  Ba7 {[%clk 0:00:33]} 13. Nxa7 {[%clk 0:01:47]}  Rxa7 {[%clk 0:00:33]} 14. c4 {[%clk 0:01:44]}  f5 {[%clk 0:00:28]} 15. cxd5 {[%clk 0:01:34]}  cxd5 {[%clk 0:00:28]} 16. Nb6 {[%clk 0:01:34]}  Be6 {[%clk 0:00:25]} 17. Bb5+ {[%clk 0:01:28]}  Nc6 {[%clk 0:00:17]} 18. O-O {[%clk 0:01:19]}  Rg8 {[%clk 0:00:14]} 19. g3 {[%clk 0:01:17]}  Qg5 {[%clk 0:00:12]} 20. Qc2 {[%clk 0:01:11]}  f4 {[%clk 0:00:12]} 21. Bxc6+ {[%clk 0:01:09]}  bxc6 {[%clk 0:00:12]} 22. Qxc6+ {[%clk 0:01:10]}  Kf8 {[%clk 0:00:13]} 23. exf4 {[%clk 0:00:58]}  Qxf4 {[%clk 0:00:12]} 24. Nxd5 {[%clk 0:00:43]}  Qf3 {[%clk 0:00:09]} 25. Qd6+ {[%clk 0:00:27]}  Kg7 {[%clk 0:00:10]} 26. Nf4 {[%clk 0:00:22]}  Rb7 {[%clk 0:00:07]} 27. Qe5+ {[%clk 0:00:19]}  Kf8 {[%clk 0:00:07]} 28. Nxe6+ {[%clk 0:00:17]}  fxe6 {[%clk 0:00:08]} 29. Rac1 {[%clk 0:00:16]}  Kf7 {[%clk 0:00:07]} 30. Rc6 {[%clk 0:00:14]}  Re7 {[%clk 0:00:07]} 31. d5 {[%clk 0:00:12]}  Rg5 {[%clk 0:00:06]} 32. dxe6+ {[%clk 0:00:11]}  Kg6 {[%clk 0:00:07]} 33. Qd6 {[%clk 0:00:08]}  Kf6 {[%clk 0:00:08]} 34. Qd4+ {[%clk 0:00:07]}  Re5 {[%clk 0:00:08]} 35. Rc5 {[%clk 0:00:08]}  Rxe6 {[%clk 0:00:07]} 36. Rxe5 {[%clk 0:00:08]}  Rxe5 {[%clk 0:00:08]} 37. Rc1 {[%clk 0:00:09]}  e3 {[%clk 0:00:08]} 38. Rc6+ {[%clk 0:00:07]}  Qxc6 {[%clk 0:00:07]} 39. f4 {[%clk 0:00:05]}  Qc1+ {[%clk 0:00:06]} 40. Kg2 {[%clk 0:00:06]}  Qd2+ {[%clk 0:00:07]} 41. Qxd2 {[%clk 0:00:04]}  exd2 {[%clk 0:00:07]} 42. fxe5+ {[%clk 0:00:03]}  Kxe5 {[%clk 0:00:08]} 43. Kf3 {[%clk 0:00:04]}  d1=Q+ {[%clk 0:00:09]} 0-1


[Site "https://www.chess.com"]

[Event "Titled Tuesday Blitz November 22 Late 2022"]
[White "D`Arruda, Ricardo D."]
[Black "Kopylov, Alexander A."]
[WhiteFideId "100692"]
[BlackFideId "4164857"]
[WhiteElo "2522"]
[BlackElo "2436"]
[Result "0-1"]
[Round "06"]
[TimeControl "180+1"]
[Date "2022.11.23"]
[WhiteClock "0:00:03"]
[BlackClock "0:01:05"]

1. d4 {[%clk 0:02:56]}  Nf6 {[%clk 0:02:59]} 2. Nf3 {[%clk 0:02:56]}  e6 {[%clk 0:02:59]} 3. g3 {[%clk 0:02:51]}  b5 {[%clk 0:02:57]} 4. Bg2 {[%clk 0:02:52]}  Bb7 {[%clk 0:02:58]} 5. O-O {[%clk 0:02:52]}  c5 {[%clk 0:02:55]} 6. a4 {[%clk 0:02:53]}  b4 {[%clk 0:02:55]} 7. e3 {[%clk 0:02:44]}  a5 {[%clk 0:02:52]} 8. c4 {[%clk 0:02:44]}  cxd4 {[%clk 0:02:44]} 9. exd4 {[%clk 0:02:43]}  d5 {[%clk 0:02:40]} 10. c5 {[%clk 0:02:42]}  Nc6 {[%clk 0:02:39]} 11. Re1 {[%clk 0:02:40]}  Be7 {[%clk 0:02:39]} 12. h3 {[%clk 0:02:34]}  O-O {[%clk 0:02:40]} 13. g4 {[%clk 0:02:33]}  Ne4 {[%clk 0:02:37]} 14. Nbd2 {[%clk 0:02:29]}  Bf6 {[%clk 0:02:35]} 15. Nb3 {[%clk 0:02:12]}  g6 {[%clk 0:02:35]} 16. Be3 {[%clk 0:01:54]}  Re8 {[%clk 0:02:35]} 17. Nfd2 {[%clk 0:01:53]}  e5 {[%clk 0:02:22]} 18. Nxe4 {[%clk 0:01:48]}  dxe4 {[%clk 0:02:21]} 19. d5 {[%clk 0:01:48]}  Nd4 {[%clk 0:02:21]} 20. c6 {[%clk 0:01:40]}  Qxd5 {[%clk 0:02:06]} 21. Nxd4 {[%clk 0:01:30]}  exd4 {[%clk 0:02:03]} 22. cxb7 {[%clk 0:01:29]}  Qxb7 {[%clk 0:01:59]} 23. Bf4 {[%clk 0:01:12]}  Rad8 {[%clk 0:01:58]} 24. Rc1 {[%clk 0:01:02]}  d3 {[%clk 0:01:56]} 25. Rc7 {[%clk 0:01:02]}  Qd5 {[%clk 0:01:56]} 26. Qd2 {[%clk 0:00:55]}  g5 {[%clk 0:01:51]} 27. Be3 {[%clk 0:00:55]}  h6 {[%clk 0:01:51]} 28. Rec1 {[%clk 0:00:54]}  Qb3 {[%clk 0:01:50]} 29. R1c6 {[%clk 0:00:33]}  Qxb2 {[%clk 0:01:48]} 30. Rb6 {[%clk 0:00:17]}  Qa1+ {[%clk 0:01:47]} 31. Bf1 {[%clk 0:00:14]}  Bc3 {[%clk 0:01:47]} 32. Qc1 {[%clk 0:00:12]}  Qxc1 {[%clk 0:01:46]} 33. Bxc1 {[%clk 0:00:13]}  d2 {[%clk 0:01:46]} 34. Bxd2 {[%clk 0:00:13]}  Rxd2 {[%clk 0:01:44]} 35. Bc4 {[%clk 0:00:14]}  Rf8 {[%clk 0:01:35]} 36. Rxh6 {[%clk 0:00:14]}  Bd4 {[%clk 0:01:23]} 37. Rg6+ {[%clk 0:00:14]}  Kh7 {[%clk 0:01:23]} 38. Rxg5 {[%clk 0:00:15]}  Rxf2 {[%clk 0:01:23]} 39. Kh1 {[%clk 0:00:14]}  e3 {[%clk 0:01:22]} 40. Rf5 {[%clk 0:00:12]}  e2 {[%clk 0:01:17]} 41. Re7 {[%clk 0:00:09]}  Rxf5 {[%clk 0:01:04]} 42. gxf5 {[%clk 0:00:10]}  Rc8 {[%clk 0:01:05]} 43. Bxe2 {[%clk 0:00:08]}  b3 {[%clk 0:01:06]} 44. Rb7 {[%clk 0:00:07]}  b2 {[%clk 0:01:05]} 45. Bd3 {[%clk 0:00:07]}  Rc3 {[%clk 0:01:05]} 46. Be4 {[%clk 0:00:06]}  Re3 {[%clk 0:01:04]} 47. Bc2 {[%clk 0:00:03]}  Re1+ {[%clk 0:01:04]} 48. Kg2 {[%clk 0:00:03]}  Re2+ {[%clk 0:01:05]} 0-1


[Site "https://www.chess.com"]